[Event "Irish Championship 2020"]
[Site "Dublin"]
[Date "2020.08.07"]
[Round "7.2"]
[White "O`Gorman, Tom"]
[Black "Brady, Stephen"]
[Result "1/2-1/2"]
[ECO "B07"]
[WhiteElo "2345"]
[BlackElo "2290"]
[Annotator "ChessBase"]
[PlyCount "81"]
[EventDate "2020.08.01"]
[EventType "swiss"]
[EventCountry "IRL"]
[SourceTitle "playchess.com"]
[Source "ChessBase"]
[SourceQuality "1"]
[TimeControl "8100+35"]

1. e4 {[%emt 0:00:00]} d6 {[%emt 0:06:09]} 2. d4 {[%emt 0:00:00]} Nf6 {[%emt 0:00:04]} 3. Nc3 {[%emt 0:00:00]} g6 {[%emt 0:00:05]} 4. Be3 {[%emt 0:00:00]} Bg7 {[%emt 0:00:06]} 5. Qd2 {[%emt 0:00:00]} O-O {[%emt 0:00:07]} 6. O-O-O {[%emt 0:00:04]} c6 {[%emt 0:00:05]} 7. f3 {[%emt 0:00:09]} b5 {[%emt 0:00:06]} 8. Bh6 {[%emt 0:00:06]} Qa5 {[%emt 0:00:16]} 9. h4 {[%emt 0:00:15]} b4 {[%emt 0:00:06]} 10. Nb1 {[%emt 0:00:09]} Nbd7 {[%emt 0:00:37]} 11. Bxg7 {[%emt 0:00:11]} Kxg7 {[%emt 0:00:08]} 12. h5 {[%emt 0:00:03]} Rh8 {[%emt 0:00:24]} 13. hxg6 {[%emt 0:11:38]} hxg6 {[%emt 0:00:11]} 14. Rxh8 {[%emt 0:00:30]} Kxh8 {[%emt 0:00:06]} 15. Bc4 {[%emt 0:06:59]} Kg7 {[%emt 0:13:24]} 16. Ne2 {[%emt 0:10:50]} Ba6 {[%emt 0:16:16]} 17. Rh1 {[%emt 0:03:09]} Ng8 {[%emt 0:03:10]} 18. Bxa6 {[%emt 0:08:41]} Qxa6 {[%emt 0:00:09]} 19. g4 {[%emt 0:00:26]} c5 {[%emt 0:43:30]} 20. Nf4 {[%emt 0:25:37]} cxd4 {[%emt 0:03:15]} 21. Nd5 {[%emt 0:05:30]} Rc8 {[%emt 0:13:13]} 22. Nxe7 {[%emt 0:16:37]} Nxe7 {[%emt 0:00:53]} 23. Qh6+ {[%emt 0:00:06]} Kf6 {[%emt 0:00:05]} 24. g5+ {[%emt 0:00:42]} Ke6 {[%emt 0:00:54]} 25. Qh3+ {[%emt 0:00:26]} f5 {[%emt 0:00:15]} 26. gxf6+ {[%emt 0:00:19]} Kxf6 {[%emt 0:00:09]} 27. Qxd7 {[%emt 0:00:27]} Qc6 {[%emt 0:01:55]} 28. Qxc6 {[%emt 0:00:14]} Nxc6 {[%emt 0:01:17]} 29. f4 {[%emt 0:08:02]} Na5 {[%emt 0:09:42]} 30. Rh3 {[%emt 0:03:20]} Nc4 {[%emt 0:01:15]} 31. Rd3 {[%emt 0:01:33]} Rh8 {[%emt 0:03:55]} 32. Rxd4 {[%emt 0:03:03]} Rh1+ {[%emt 0:00:07]} 33. Rd1 {[%emt 0:00:05]} Rxd1+ {[%emt 0:00:40]} 34. Kxd1 {[%emt 0:00:06]} Nxb2+ {[%emt 0:00:05]} 35. Ke2 {[%emt 0:00:08]} g5 {[%emt 0:00:23]} 36. fxg5+ {[%emt 0:11:37]} Kxg5 {[%emt 0:00:09]} 37. Ke3 {[%emt 0:00:06]} Nd1+ {[%emt 0:09:39]} 38. Ke2 {[%emt 0:06:32]} Nb2 {[%emt 0:00:58]} 39. Ke3 {[%emt 0:00:05]} Nd1+ {[%emt 0:00:05]} 40. Ke2 {[%emt 0:07:53]} Nb2 {[%emt 0:00:13]} 41. Ke3 {[%emt 0:00:03]} 1/2-1/2

[Event "Irish Championship 2020"]
[Site "Dublin"]
[Date "2020.08.07"]
[Round "7.3"]
[White "Kanyamarala, Tarun"]
[Black "O`Donnell, Conor"]
[Result "0-1"]
[ECO "C11"]
[WhiteElo "2381"]
[BlackElo "2304"]
[Annotator "ChessBase"]
[PlyCount "76"]
[EventDate "2020.08.01"]
[EventType "swiss"]
[EventCountry "IRL"]
[SourceTitle "playchess.com"]
[Source "ChessBase"]
[SourceQuality "1"]
[TimeControl "8100+35"]

1. e4 {[%emt 0:00:00]} e6 {[%emt 0:00:00]} 2. Nc3 {[%emt 0:04:02]} d5 {[%emt 0:00:05]} 3. Nf3 {[%emt 0:00:16]} Nf6 {[%emt 0:00:30]} 4. e5 {[%emt 0:00:02]} Nfd7 {[%emt 0:00:14]} 5. d4 {[%emt 0:00:44]} c5 {[%emt 0:00:09]} 6. dxc5 {[%emt 0:00:38]} Nc6 {[%emt 0:00:11]} 7. Bf4 {[%emt 0:03:58]} Nxc5 {[%emt 0:00:41]} 8. a3 {[%emt 0:02:16]} f6 {[%emt 0:10:15]} 9. Bb5 {[%emt 0:16:09]} Be7 {[%emt 0:12:21]} 10. O-O {[%emt 0:18:48]} O-O {[%emt 0:04:00]} 11. Bxc6 {[%emt 0:09:58]} bxc6 {[%emt 0:00:18]} 12. Qd2 {[%emt 0:03:53]} a5 {[%emt 0:15:27]} 13. Rfe1 {[%emt 0:14:20]} Bd7 {[%emt 0:02:20]} 14. Nd4 {[%emt 0:08:52]} f5 {[%emt 0:07:32]} 15. Re3 {[%emt 0:15:16]} Qb6 {[%emt 0:15:14]} 16. Rg3 {[%emt 0:06:45]} Rf7 {[%emt 0:02:21]} 17. Rb1 {[%emt 0:11:34]} Qc7 {[%emt 0:18:50]} 18. Nde2 {[%emt 0:06:05]} a4 {[%emt 0:09:07]} 19. Be3 {[%emt 0:16:32]} Qxe5 {[%emt 0:10:35]} 20. Bd4 {[%emt 0:03:48]} Qc7 {[%emt 0:03:53]} 21. f4 {[%emt 0:00:04]} Bd6 {[%emt 0:01:59]} 22. Rf1 {[%emt 0:00:26]} Raf8 {[%emt 0:03:44]} 23. Qe3 {[%emt 0:00:50]} Ne4 {[%emt 0:00:41]} 24. Nxe4 {[%emt 0:00:43]} fxe4 {[%emt 0:00:26]} 25. Bb6 {[%emt 0:02:21]} Qb8 {[%emt 0:03:40]} 26. Rd1 {[%emt 0:00:45]} e5 {[%emt 0:00:49]} 27. fxe5 {[%emt 0:00:34]} Bxe5 {[%emt 0:00:06]} 28. c4 {[%emt 0:00:17]} Bxg3 {[%emt 0:01:14]} 29. Nxg3 {[%emt 0:00:02]} Be6 {[%emt 0:01:49]} 30. Bc5 {[%emt 0:00:53]} Re8 {[%emt 0:01:43]} 31. cxd5 {[%emt 0:01:19]} Bxd5 {[%emt 0:01:20]} 32. Re1 {[%emt 0:00:35]} Qxb2 {[%emt 0:01:04]} 33. Bd4 {[%emt 0:00:35]} Qc2 {[%emt 0:04:09]} 34. Nh5 {[%emt 0:00:12]} Re6 {[%emt 0:03:02]} 35. Nf4 {[%emt 0:00:53]} Ree7 {[%emt 0:01:02]} 36. Qg3 {[%emt 0:00:49]} e3 {[%emt 0:03:22]} 37. Nh5 {[%emt 0:00:42]} Qf5 {[%emt 0:05:36]} 38. Nxg7 {[%emt 0:00:32]} Qf2+ {[%emt 0:00:46]} 0-1

[Event "Irish Championship 2020"]
[Site "Dublin"]
[Date "2020.08.07"]
[Round "7.4"]
[White "Fitzsimons, David"]
[Black "Peoples, Jonathon"]
[Result "1-0"]
[ECO "B23"]
[WhiteElo "2334"]
[BlackElo "1932"]
[Annotator "ChessBase"]
[PlyCount "45"]
[EventDate "2020.08.01"]
[EventType "swiss"]
[EventCountry "IRL"]
[SourceTitle "playchess.com"]
[Source "ChessBase"]
[SourceQuality "1"]
[TimeControl "8100+35"]

1. e4 {[%emt 0:00:00]} c5 {[%emt 0:00:00]} 2. Nc3 {[%emt 0:00:00]} Nc6 {[%emt 0:00:00]} 3. Bb5 {[%emt 0:00:00]} e6 {[%emt 0:01:18]} 4. Bxc6 {[%emt 0:00:00]} bxc6 {[%emt 0:00:15]} 5. d3 {[%emt 0:00:04]} d5 {[%emt 0:03:30]} 6. f4 {[%emt 0:02:26]} Nf6 {[%emt 0:05:30]} 7. Nf3 {[%emt 0:00:59]} Be7 {[%emt 0:03:55]} 8. O-O {[%emt 0:01:38]} Ba6 {[%emt 0:02:24]} 9. e5 {[%emt 0:03:41]} Nd7 {[%emt 0:00:18]} 10. Qe2 {[%emt 0:00:30]} c4 {[%emt 0:04:22]} 11. d4 {[%emt 0:00:23]} c5 {[%emt 0:00:48]} 12. Be3 {[%emt 0:00:42]} Qb6 {[%emt 0:06:01]} 13. Rab1 {[%emt 0:01:20]} O-O 14. Qf2 {[%emt 0:01:28]} Rac8 {[%emt 0:17:28]} 15. Kh1 {[%emt 0:09:11]} f6 {[%emt 0:06:33]} 16. exf6 {[%emt 0:15:50]} Bxf6 {[%emt 0:03:28]} 17. dxc5 {[%emt 0:14:00]} Qc6 {[%emt 0:07:46]} 18. Qe2 {[%emt 0:05:50]} Rce8 {[%emt 0:04:49]} 19. Nd4 {[%emt 0:07:25]} Bxd4 {[%emt 0:02:18]} 20. Bxd4 {[%emt 0:00:06]} Nxc5 {[%emt 0:00:55]} 21. Qe5 {[%emt 0:00:22]} Rf7 {[%emt 0:02:27]} 22. Bxc5 {[%emt 0:00:46]} Qxc5 {[%emt 0:00:12]} 23. Ne4 {[%emt 0:00:29]} 1-0

[Event "Irish Championship 2020"]
[Site "Dublin"]
[Date "2020.08.07"]
[Round "7.5"]
[White "Wallace, John Paul"]
[Black "Murray, David"]
[Result "1-0"]
[ECO "B57"]
[WhiteElo "2346"]
[BlackElo "2152"]
[Annotator "ChessBase"]
[PlyCount "87"]
[EventDate "2020.08.01"]
[EventType "swiss"]
[EventCountry "IRL"]
[SourceTitle "playchess.com"]
[Source "ChessBase"]
[SourceQuality "1"]
[TimeControl "8100+35"]

1. e4 {[%emt 0:00:00]} c5 {[%emt 0:00:00]} 2. Nf3 {[%emt 0:00:00]} d6 {[%emt 0:00:00]} 3. d4 {[%emt 0:00:00]} cxd4 {[%emt 0:00:00]} 4. Nxd4 {[%emt 0:00:00]} Nf6 {[%emt 0:00:01]} 5. Nc3 {[%emt 0:00:00]} Nc6 {[%emt 0:00:58]} 6. Bc4 {[%emt 0:00:39]} Qb6 {[%emt 0:01:05]} 7. Nb3 {[%emt 0:01:18]} a6 {[%emt 0:03:25]} 8. O-O {[%emt 0:03:00]} e6 {[%emt 0:00:36]} 9. a4 {[%emt 0:03:28]} Be7 {[%emt 0:04:40]} 10. Kh1 {[%emt 0:13:27]} Qc7 {[%emt 0:03:02]} 11. f4 {[%emt 0:01:30]} O-O {[%emt 0:04:12]} 12. Be3 {[%emt 0:11:20]} b6 {[%emt 0:04:32]} 13. Bd3 {[%emt 0:03:53]} Bb7 {[%emt 0:03:23]} 14. Qe1 {[%emt 0:00:37]} Rfd8 {[%emt 0:03:40]} 15. Qg3 {[%emt 0:02:12]} Rac8 {[%emt 0:13:45]} 16. f5 {[%emt 0:05:57]} exf5 {[%emt 0:11:35]} 17. Rxf5 {[%emt 0:00:48]} Ne5 {[%emt 0:01:21]} 18. Raf1 {[%emt 0:03:05]} Kh8 {[%emt 0:04:50]} 19. Bd4 {[%emt 0:04:03]} Rg8 {[%emt 0:04:36]} 20. Nd2 {[%emt 0:04:38]} Nfd7 {[%emt 0:23:50]} 21. Nf3 {[%emt 0:12:13]} Nxf3 {[%emt 0:10:16]} 22. Qxf3 {[%emt 0:16:27]} Ne5 {[%emt 0:09:13]} 23. Bxe5 {[%emt 0:03:56]} dxe5 {[%emt 0:00:17]} 24. Rxf7 {[%emt 0:00:37]} Qd6 {[%emt 0:02:58]} 25. Nd5 {[%emt 0:01:17]} Rce8 {[%emt 0:07:12]} 26. Rxe7 {[%emt 0:04:02]} Rxe7 {[%emt 0:01:03]} 27. Nxe7 {[%emt 0:00:09]} Qxe7 {[%emt 0:00:06]} 28. Qf7 {[%emt 0:52:44]} Qxf7 {[%emt 0:00:53]} 29. Rxf7 {[%emt 0:00:00]} Bc6 {[%emt 0:02:34]} 30. b3 {[%emt 0:00:00]} Rd8 {[%emt 0:06:50]} 31. Kg1 {[%emt 0:00:00]} h6 {[%emt 0:01:03]} 32. Re7 {[%emt 0:00:00]} b5 {[%emt 0:02:26]} 33. a5 {[%emt 0:00:00]} Kg8 {[%emt 0:03:52]} 34. Rxe5 {[%emt 0:00:00]} Kf7 {[%emt 0:00:28]} 35. Kf2 {[%emt 0:00:00]} Rd6 {[%emt 0:04:25]} 36. Ke3 {[%emt 0:00:00]} Kf6 {[%emt 0:01:07]} 37. Rc5 {[%emt 0:00:00]} Re6 {[%emt 0:00:50]} 38. b4 {[%emt 0:00:00]} Bb7 {[%emt 0:01:27]} 39. Rc7 {[%emt 0:00:00]} Bc6 {[%emt 0:01:28]} 40. Ra7 {[%emt 0:00:00]} Be8 {[%emt 0:00:18]} 41. c4 {[%emt 0:00:00]} g5 {[%emt 0:00:46]} 42. cxb5 {[%emt 0:00:00]} Bxb5 {[%emt 0:00:51]} 43. Bxb5 {[%emt 0:00:00]} axb5 {[%emt 0:00:04]} 44. Rb7 {[%emt 0:00:00]} 1-0

[Event "Irish Championship 2020"]
[Site "Dublin"]
[Date "2020.08.07"]
[Round "7.6"]
[White "Melaugh, Shane"]
[Black "Kanyamarala, Trisha"]
[Result "0-1"]
[ECO "D13"]
[WhiteElo "2161"]
[BlackElo "2193"]
[Annotator "ChessBase"]
[PlyCount "70"]
[EventDate "2020.08.01"]
[EventType "swiss"]
[EventCountry "IRL"]
[SourceTitle "playchess.com"]
[Source "ChessBase"]
[SourceQuality "1"]
[TimeControl "8100+35"]

1. c4 {[%emt 0:14:48]} c6 {[%emt 0:00:00]} 2. Nc3 {[%emt 0:04:43]} d5 {[%emt 0:00:11]} 3. cxd5 {[%emt 0:00:12]} cxd5 {[%emt 0:00:08]} 4. d4 {[%emt 0:00:06]} Nf6 {[%emt 0:00:34]} 5. Nf3 {[%emt 0:00:22]} Nc6 {[%emt 0:00:20]} 6. e3 {[%emt 0:02:43]} Bg4 {[%emt 0:08:50]} 7. Qb3 {[%emt 0:01:45]} Rb8 {[%emt 0:07:31]} 8. Ne5 {[%emt 0:00:40]} Bd7 {[%emt 0:16:00]} 9. Nxd5 {[%emt 0:02:02]} Qa5+ {[%emt 0:01:01]} 10. Nc3 {[%emt 0:02:33]} Nxe5 {[%emt 0:00:18]} 11. dxe5 {[%emt 0:00:21]} Qxe5 {[%emt 0:00:18]} 12. Bc4 {[%emt 0:04:49]} e6 {[%emt 0:01:23]} 13. O-O {[%emt 0:02:50]} Bd6 {[%emt 0:07:45]} 14. f4 {[%emt 0:00:34]} Qc5 {[%emt 0:01:56]} 15. Nb5 {[%emt 0:02:56]} O-O {[%emt 0:21:30]} 16. Nxd6 {[%emt 0:00:31]} Qxd6 {[%emt 0:00:06]} 17. Rd1 {[%emt 0:00:19]} Qc7 {[%emt 0:01:33]} 18. Bd2 {[%emt 0:00:52]} b5 {[%emt 0:00:24]} 19. Be2 {[%emt 0:04:48]} b4 {[%emt 0:19:26]} 20. a3 {[%emt 0:44:26]} bxa3 {[%emt 0:34:41]} 21. Qxa3 {[%emt 0:00:08]} Qc2 {[%emt 0:05:33]} 22. b4 {[%emt 0:02:37]} Bb5 {[%emt 0:08:18]} 23. Ra2 {[%emt 0:07:11]} Qf5 {[%emt 0:04:00]} 24. Bf3 {[%emt 0:04:11]} a6 {[%emt 0:01:29]} 25. Bc3 {[%emt 0:03:37]} Rfd8 {[%emt 0:01:48]} 26. Rad2 {[%emt 0:01:01]} Rxd2 {[%emt 0:00:24]} 27. Rxd2 {[%emt 0:00:04]} Ne4 {[%emt 0:02:13]} 28. Rd4 {[%emt 0:00:31]} Nxc3 {[%emt 0:02:11]} 29. Qxc3 {[%emt 0:00:03]} h6 {[%emt 0:00:40]} 30. Qc7 {[%emt 0:02:48]} Rf8 {[%emt 0:00:15]} 31. e4 {[%emt 0:06:36]} Qf6 {[%emt 0:01:19]} 32. e5 {[%emt 0:02:48]} Qh4 {[%emt 0:00:24]} 33. Qc3 {[%emt 0:04:00]} Rd8 {[%emt 0:00:58]} 34. g3 {[%emt 0:00:08]} Qe7 {[%emt 0:00:07]} 35. Qc5 {[%emt 0:01:09]} Qxc5 {[%emt 0:00:26]} 0-1

[Event "Irish Championship 2020"]
[Site "Dublin"]
[Date "2020.08.07"]
[Round "7.7"]
[White "Lyons, Brendan"]
[Black "Melaugh, Gavin"]
[Result "0-1"]
[ECO "B23"]
[WhiteElo "1941"]
[BlackElo "2003"]
[Annotator "ChessBase"]
[PlyCount "76"]
[EventDate "2020.08.01"]
[EventType "swiss"]
[EventCountry "IRL"]
[SourceTitle "playchess.com"]
[Source "ChessBase"]
[SourceQuality "1"]
[TimeControl "8100+35"]

1. e4 {[%emt 0:08:32]} c5 {[%emt 0:05:47]} 2. Nc3 {[%emt 0:00:33]} g6 {[%emt 0:01:07]} 3. f4 {[%emt 0:05:54]} Bg7 {[%emt 0:00:37]} 4. Nf3 {[%emt 0:00:07]} Nc6 {[%emt 0:00:56]} 5. Bc4 {[%emt 0:00:13]} e6 {[%emt 0:02:18]} 6. O-O {[%emt 0:08:55]} Nge7 {[%emt 0:00:15]} 7. f5 {[%emt 0:00:26]} gxf5 {[%emt 0:05:43]} 8. d3 {[%emt 0:01:01]} O-O {[%emt 0:03:38]} 9. Qe1 {[%emt 0:21:21]} d5 {[%emt 0:17:40]} 10. Bb3 {[%emt 0:14:55]} c4 {[%emt 0:15:32]} 11. exd5 {[%emt 0:11:14]} cxb3 {[%emt 0:02:30]} 12. dxc6 {[%emt 0:00:21]} bxc2 {[%emt 0:03:03]} 13. Bg5 {[%emt 0:07:43]} bxc6 {[%emt 0:07:27]} 14. Qg3 {[%emt 0:05:06]} f6 {[%emt 0:01:47]} 15. Bh6 {[%emt 0:04:22]} Rf7 {[%emt 0:04:02]} 16. d4 {[%emt 0:09:24]} Ng6 {[%emt 0:04:54]} 17. Be3 {[%emt 0:04:10]} e5 {[%emt 0:20:10]} 18. dxe5 {[%emt 0:06:38]} fxe5 {[%emt 0:00:25]} 19. Qf2 {[%emt 0:10:15]} f4 {[%emt 0:02:42]} 20. Bc5 {[%emt 0:01:20]} Bf5 {[%emt 0:01:23]} 21. h4 {[%emt 0:00:32]} Rb7 {[%emt 0:07:21]} 22. h5 {[%emt 0:07:35]} Rxb2 {[%emt 0:03:49]} 23. Qe1 {[%emt 0:05:45]} Qa5 {[%emt 0:04:38]} 24. Bd6 {[%emt 0:09:21]} e4 {[%emt 0:06:14]} 25. Nxe4 {[%emt 0:01:54]} Qxe1 {[%emt 0:01:36]} 26. Raxe1 {[%emt 0:00:35]} Bxe4 {[%emt 0:04:21]} 27. Rxe4 {[%emt 0:00:31]} Rb1 {[%emt 0:01:17]} 28. Ree1 {[%emt 0:00:47]} Rxe1 {[%emt 0:00:26]} 29. Rxe1 {[%emt 0:00:08]} Bb2 {[%emt 0:00:24]} 30. hxg6 {[%emt 0:00:56]} c1=Q {[%emt 0:00:17]} 31. gxh7+ {[%emt 0:00:29]} Kxh7 {[%emt 0:00:18]} 32. Rxc1 {[%emt 0:00:18]} Bxc1 {[%emt 0:00:07]} 33. Ng5+ {[%emt 0:00:18]} Kg6 {[%emt 0:01:41]} 34. Ne6 {[%emt 0:02:04]} Be3+ {[%emt 0:02:13]} 35. Kf1 {[%emt 0:00:27]} Kf5 {[%emt 0:00:14]} 36. Ng7+ {[%emt 0:01:07]} Ke4 {[%emt 0:00:35]} 37. Nh5 {[%emt 0:00:38]} Rd8 {[%emt 0:00:57]} 38. Nf6+ {[%emt 0:01:15]} Kf5 0-1

[Event "Irish Championship 2020"]
[Site "Dublin"]
[Date "2020.08.07"]
[Round "7.8"]
[White "Putar, Leon"]
[Black "Venkatesan, Kavin"]
[Result "0-1"]
[ECO "B50"]
[WhiteElo "1894"]
[BlackElo "1946"]
[Annotator "ChessBase"]
[PlyCount "86"]
[EventDate "2020.08.01"]
[EventType "swiss"]
[EventCountry "IRL"]
[SourceTitle "playchess.com"]
[Source "ChessBase"]
[SourceQuality "1"]
[TimeControl "8100+35"]

1. e4 {[%emt 0:00:00]} c5 {[%emt 0:00:00]} 2. Nf3 {[%emt 0:00:22]} d6 {[%emt 0:00:00]} 3. c3 {[%emt 0:00:19]} Nf6 {[%emt 0:00:02]} 4. h3 {[%emt 0:00:19]} Nc6 {[%emt 0:03:27]} 5. Bd3 {[%emt 0:01:03]} Qc7 {[%emt 0:06:33]} 6. Bc2 {[%emt 0:02:27]} d5 {[%emt 0:06:08]} 7. exd5 {[%emt 0:06:00]} Nxd5 {[%emt 0:00:09]} 8. O-O {[%emt 0:05:08]} e6 {[%emt 0:05:09]} 9. d4 {[%emt 0:09:06]} cxd4 {[%emt 0:01:17]} 10. cxd4 {[%emt 0:00:35]} Be7 {[%emt 0:08:04]} 11. Nc3 {[%emt 0:03:41]} Nf6 {[%emt 0:14:33]} 12. Ne5 {[%emt 0:13:14]} O-O {[%emt 0:07:11]} 13. Bf4 {[%emt 0:09:30]} Rd8 {[%emt 0:12:51]} 14. Nxc6 {[%emt 0:11:14]} Qxc6 {[%emt 0:00:04]} 15. Rc1 {[%emt 0:01:36]} b5 {[%emt 0:08:15]} 16. Ne4 {[%emt 0:10:57]} Nxe4 {[%emt 0:07:37]} 17. f3 {[%emt 0:01:05]} Nc3 {[%emt 0:14:52]} 18. Be4 {[%emt 0:08:05]} Qxe4 {[%emt 0:01:30]} 19. fxe4 {[%emt 0:03:08]} Nxd1 {[%emt 0:00:03]} 20. Rfxd1 {[%emt 0:00:15]} Kf8 {[%emt 0:02:29]} 21. d5 {[%emt 0:02:02]} exd5 {[%emt 0:00:50]} 22. exd5 {[%emt 0:00:09]} Bd6 {[%emt 0:00:21]} 23. Bxd6+ {[%emt 0:07:18]} Rxd6 {[%emt 0:00:03]} 24. Rc5 {[%emt 0:00:11]} a6 {[%emt 0:00:28]} 25. Kf2 {[%emt 0:00:39]} Bb7 {[%emt 0:00:53]} 26. Ke3 {[%emt 0:02:43]} Rad8 {[%emt 0:01:23]} 27. Ke4 {[%emt 0:00:07]} Re8+ {[%emt 0:00:15]} 28. Kf4 {[%emt 0:00:45]} f6 {[%emt 0:01:39]} 29. b4 {[%emt 0:01:47]} Red8 {[%emt 0:01:19]} 30. Ke4 {[%emt 0:00:16]} g5 {[%emt 0:01:46]} 31. g4 {[%emt 0:00:49]} Re8+ {[%emt 0:00:46]} 32. Kd4 {[%emt 0:01:41]} Rxd5+ {[%emt 0:00:50]} 33. Rxd5 {[%emt 0:00:18]} Bxd5 {[%emt 0:00:02]} 34. Rf1 {[%emt 0:00:15]} Bxa2 {[%emt 0:01:15]} 35. Rxf6+ {[%emt 0:00:06]} Kg7 {[%emt 0:00:16]} 36. Rxa6 {[%emt 0:00:05]} Bc4 {[%emt 0:01:12]} 37. Rb6 {[%emt 0:00:31]} Bf1 {[%emt 0:01:56]} 38. Rb7+ {[%emt 0:01:41]} Kg8 {[%emt 0:01:31]} 39. Rb6 {[%emt 0:00:13]} Kf7 {[%emt 0:00:43]} 40. Rh6 {[%emt 0:00:14]} Kg7 {[%emt 0:00:16]} 41. Rb6 {[%emt 0:00:03]} Re7 {[%emt 0:00:20]} 42. Rb8 {[%emt 0:00:13]} h6 {[%emt 0:00:06]} 43. Rb6 {[%emt 0:00:41]} Bxh3 {[%emt 0:41:41]} 0-1

[Event "Irish Championship 2020"]
[Site "Dublin"]
[Date "2020.08.07"]
[Round "7.9"]
[White "Flynn, Jacob"]
[Black "Collins, Sam E."]
[Result "0-1"]
[ECO "E93"]
[WhiteElo "2114"]
[BlackElo "2459"]
[Annotator "ChessBase"]
[PlyCount "79"]
[EventDate "2020.08.01"]
[EventType "swiss"]
[EventCountry "IRL"]
[SourceTitle "playchess.com"]
[Source "ChessBase"]
[SourceQuality "1"]
[TimeControl "8100+35"]

1. d4 {[%emt 0:00:00]} Nf6 {[%emt 2:15:35]} 2. c4 {[%emt 0:00:00]} g6 {[%emt 0:00:35]} 3. Nc3 {[%emt 0:00:00]} Bg7 {[%emt 0:00:35]} 4. e4 {[%emt 0:00:16]} d6 {[%emt 0:00:35]} 5. Nf3 {[%emt 0:00:24]} O-O {[%emt 0:00:35]} 6. Be2 {[%emt 0:00:14]} Nbd7 {[%emt 0:00:35]} 7. Be3 {[%emt 0:06:12]} e5 {[%emt 0:00:35]} 8. d5 {[%emt 0:00:53]} Ng4 {[%emt 0:00:35]} 9. Bg5 {[%emt 0:00:16]} f6 {[%emt 0:00:35]} 10. Bh4 {[%emt 0:00:22]} a5 {[%emt 0:00:35]} 11. Nd2 {[%emt 0:03:40]} Nh6 12. a3 {[%emt 0:01:21]} g5 13. Bg3 {[%emt 0:00:28]} f5 14. exf5 {[%emt 0:00:11]} Nf6 {[%emt 0:02:20]} 15. Nde4 {[%emt 0:03:57]} Nxe4 {[%emt 0:00:35]} 16. Nxe4 {[%emt 0:01:33]} Nxf5 {[%emt 0:00:35]} 17. O-O {[%emt 0:26:01]} Qe7 {[%emt 0:00:35]} 18. Rc1 {[%emt 0:03:39]} b6 {[%emt 0:00:35]} 19. Bg4 {[%emt 0:13:55]} a4 {[%emt 0:00:35]} 20. Re1 {[%emt 0:05:17]} Bd7 {[%emt 0:00:35]} 21. f3 {[%emt 0:15:05]} Be8 {[%emt 0:00:35]} 22. Bf2 {[%emt 0:05:55]} Bg6 {[%emt 0:00:35]} 23. Nc3 {[%emt 0:06:34]} h5 {[%emt 0:00:35]} 24. Bxf5 {[%emt 0:07:32]} Rxf5 {[%emt 0:00:35]} 25. Nxa4 {[%emt 0:02:01]} Raf8 {[%emt 0:00:00]} 26. Be3 {[%emt 0:02:10]} h4 {[%emt 0:00:00]} 27. h3 {[%emt 0:02:22]} Bh5 {[%emt 0:01:45]} 28. Nc3 {[%emt 0:01:38]} Qd7 {[%emt 0:00:35]} 29. Rc2 {[%emt 0:07:21]} Rxf3 {[%emt 0:00:00]} 30. gxf3 {[%emt 0:04:59]} Rxf3 {[%emt 0:01:10]} 31. Qd3 {[%emt 0:05:10]} Rg3+ {[%emt 0:00:35]} 32. Rg2 {[%emt 0:00:51]} Qxh3 {[%emt 0:00:00]} 33. Rxg3 {[%emt 0:01:42]} Qxg3+ {[%emt 0:01:10]} 34. Kf1 {[%emt 0:00:08]} Qf3+ {[%emt 0:00:35]} 35. Kg1 {[%emt 0:00:28]} Qg3+ {[%emt 0:00:35]} 36. Kf1 {[%emt 0:00:06]} Qh3+ {[%emt 0:00:35]} 37. Kg1 {[%emt 0:04:01]} Bf3 {[%emt 0:00:00]} 38. Re2 {[%emt 0:00:59]} g4 {[%emt 0:01:10]} 39. Bg5 {[%emt 0:09:27]} Qg3+ {[%emt 0:00:00]} 40. Kf1 {[%emt 0:00:10]} 0-1